bitfinex-derivatives/quotes_ETHF0:USTF0_20260207
["timestamp","ask_amount","ask_price","bid_price","bid_amount"]
[1770432603508,11.97881127,2052.3,2051.9,4.78572781]
[1770432603704,11.97881127,2052.3,2051.8,2.92114764]
[1770432603908,11.97881127,2052.2,2051.8,7.70680748]
[1770432604311,11.97881127,2052.2,2051.8,2.92114764]
[1770432604808,11.97881127,2052.2,2051.7,2.92114764]
[1770432605009,11.97881127,2052.2,2051.7,7.70872173]
[1770432605213,11.97881127,2052.2,2051.7,2.92114764]
[1770432606410,11.97881127,2052.2,2051.8,4.79225311]
[1770432606610,11.97881127,2052.2,2051.7,2.92114764]
[1770432606809,11.97881127,2052.2,2051.8,4.79225169]
[1770432607011,11.97881127,2052.2,2051.7,2.92114764]
[1770432607203,11.97881127,2052.2,2051.8,4.79225175]
[1770432607405,11.97881127,2052.2,2051.8,2.92114764]
[1770432608413,11.97881127,2052.2,2051.9,4.87320573]
[1770432608614,11.97881127,2052.2,2051.9,2.92114764]
[1770432608813,11.97881127,2052.2,2051.7,4.37784873]
[1770432608814,11.97881127,2052.2,2051.8,2.92114764]
[1770432609015,11.97881127,2052.2,2051.9,4.87313563]
[1770432609216,11.97881127,2052.2,2051.9,2.92114764]
[1770432610309,11.97881127,2052.2,2052.0,4.88082935]
[1770432610514,11.97881127,2052.2,2051.9,2.92114764]
[1770432610713,11.97881127,2052.2,2052.0,4.88082883]
[1770432610913,11.97881127,2052.2,2051.9,2.92114764]
[1770432611109,11.97881127,2052.2,2052.0,4.88079401]
[1770432611314,11.97881127,2052.2,2051.9,2.92114764]
[1770432611510,11.97881127,2052.2,2052.0,4.8808052]
[1770432611712,11.97881127,2052.2,2051.9,2.92114764]
[1770432611910,11.97881127,2052.2,2052.0,4.8808052]
[1770432612111,11.97881127,2052.2,2051.9,2.92114764]
[1770432612314,11.97881127,2052.2,2052.0,7.8019531]
[1770432612514,11.97881127,2052.2,2052.0,2.92114764]
[1770432614113,11.87068677,2052.1,2052.0,2.92114764]
[1770432614412,8.21360884,2052.1,2052.0,7.80443737]
[1770432614920,11.13940109,2051.9,2051.7,5.75334947]
[1770432615118,11.13940109,2051.9,2051.5,7.21089871]
[1770432615119,3.93447318,2051.9,2051.6,5.75334947]
[1770432615818,3.93447318,2051.9,2051.5,16.9365262]
[1770432616019,14.50598599,2051.9,2051.5,16.9365262]
[1770432616620,11.13940109,2051.8,2051.5,5.75788554]
[1770432616918,11.13940109,2051.8,2051.5,16.9365262]
[1770432618321,10.57151281,2051.7,2051.5,16.9365262]
[1770432618823,11.13940109,2052.7,2051.6,11.17864066]
[1770432619010,11.13940109,2052.0,2051.6,11.17864066]
[1770432619415,21.7109139,2051.9,2051.6,11.17864066]
[1770432619718,11.13940109,2051.9,2051.6,11.17864066]
[1770432619914,11.13940109,2052.5,2051.6,11.17864066]
[1770432620113,11.13940109,2052.5,2051.5,5.75788554]
[1770432620319,11.13940109,2052.3,2051.5,0.00453607]
[1770432621722,11.13940109,2052.1,2051.5,0.00453607]
[1770432622122,11.13940109,2051.9,2051.2,11.17864066]
[1770432622419,11.13940109,2051.9,2051.1,16.93199013]
[1770432622722,11.13940109,2051.7,2051.1,16.93199013]
[1770432623122,11.13940109,2051.5,2051.1,11.18484063]
[1770432623722,21.7109139,2051.5,2051.1,11.18484063]
[1770432623919,10.57151281,2051.5,2051.1,11.18484063]
[1770432625322,21.7109139,2051.5,2051.1,11.18484063]
[1770432625525,11.13940109,2051.4,2051.1,11.18484063]
[1770432625825,11.14545042,2051.4,2051.1,11.18484063]
[1770432626920,11.14545042,2051.4,2051.2,4.48985697]
[1770432627119,11.14545042,2051.4,2051.1,11.18484063]
[1770432627319,0.00604933,2051.4,2051.2,15.66795923]
[1770432627515,0.00604933,2051.4,2051.2,11.17864066]
[1770432630225,10.57151281,2051.5,2051.2,11.17864066]
[1770432630426,11.13940109,2051.4,2050.9,16.93199013]
[1770432630624,3.02604929,2052.3,2051.0,15.66848957]
[1770432630625,11.13940109,2052.1,2051.0,15.66848957]
[1770432630927,11.13940109,2052.1,2051.0,11.17864066]
[1770432631124,11.13940109,2051.9,2051.0,11.17864066]
[1770432631523,11.14538896,2051.9,2051.0,11.18287142]
[1770432631825,11.13940109,2051.8,2051.2,11.17864066]
[1770432632022,11.13940109,2051.7,2051.2,11.17864066]
[1770432632220,10.56531284,2051.6,2051.2,11.17864066]
[1770432632520,10.56077678,2051.6,2051.2,11.17864066]
[1770432633116,11.13940109,2051.5,2051.2,11.17864066]
[1770432633315,11.13940109,2051.5,2051.0,0.00423076]
[1770432633624,11.13940109,2052.4,2051.5,11.17864066]
[1770432633827,11.13940109,2052.4,2051.7,11.17864066]
[1770432634127,11.13940109,2052.4,2051.9,11.17864066]
[1770432634527,11.14359641,2052.4,2051.9,11.17864066]
[1770432636731,0.00419532,2052.4,2051.9,11.17864066]
[1770432637025,11.4711649,2052.4,2051.9,11.17864066]
[1770432637528,11.4711649,2052.4,2051.8,11.57713674]
[1770432638827,11.4711649,2052.4,2052.0,11.57713674]
[1770432640430,5.78362534,2053.3,2052.0,11.57713674]
[1770432640431,7.56296958,2053.2,2052.0,11.57713674]
[1770432640730,7.56296958,2053.2,2052.2,11.57713674]
[1770432640931,7.56296958,2053.2,2052.4,11.57713674]
[1770432641120,7.56296958,2053.2,2052.1,5.8299633]
[1770432641324,7.56296958,2053.2,2052.3,11.57713674]
[1770432641522,7.56643198,2053.2,2052.3,11.57713674]
[1770432641725,7.56643198,2053.2,2052.1,11.57713674]
[1770432641932,7.56643198,2053.2,2052.2,16.01441866]
[1770432642132,7.56643198,2053.2,2052.2,11.57713674]
[1770432642327,7.56643198,2053.2,2052.0,11.57713674]
[1770432642528,7.56643198,2053.2,2052.1,16.01278372]
[1770432642727,7.56643198,2053.2,2051.9,11.57713674]
[1770432642930,7.56643198,2053.2,2052.0,16.01287631]
[1770432643128,7.56643198,2053.2,2052.1,4.43573957]
[1770432643330,7.56643198,2053.2,2052.0,11.57713674]
[1770432644028,7.56643198,2053.2,2052.2,11.57713674]
[1770432648236,7.56643198,2053.2,2052.4,11.57713674]
[1770432648534,6.02721534,2054.0,2052.4,11.57713674]
[1770432648535,11.46696958,2054.0,2052.8,0.24373]
[1770432648737,11.46696958,2054.0,2052.9,11.57713674]
[1770432649130,11.46696958,2054.0,2053.0,16.0034159]
[1770432649331,11.46696958,2054.0,2053.1,11.57713674]
[1770432649534,11.47044965,2054.0,2053.1,11.5822177]
[1770432650130,0.00348007,2054.0,2053.1,11.5822177]
[1770432650731,11.47044965,2054.0,2053.1,11.5822177]
[1770432653545,0.00348007,2054.0,2053.1,11.5822177]
[1770432653940,11.47044965,2054.0,2053.1,11.5822177]
[1770432658247,0.00348007,2054.0,2053.1,11.8259077]
[1770432658649,11.47044965,2054.0,2053.1,11.8259077]
[1770432660141,11.46696958,2054.2,2053.3,11.57713674]
[1770432660343,11.46696958,2054.9,2053.3,11.57713674]
[1770432661148,11.47144829,2054.9,2053.3,11.57713674]
[1770432661448,11.47144829,2054.9,2053.5,11.57713674]
[1770432661649,11.47144829,2054.9,2053.7,11.57713674]
[1770432662448,11.47144829,2054.9,2053.7,11.82075674]
[1770432662646,11.46696958,2055.1,2054.0,11.57713674]
[1770432663748,11.47311172,2055.1,2054.0,11.57713674]
[1770432667245,11.47311172,2055.1,2054.3,11.2019466]
[1770432667548,11.47311172,2055.1,2054.3,11.27818116]
[1770432668052,11.83519177,2055.5,2054.6,11.92992468]
[1770432669050,11.83928604,2055.5,2054.6,11.93573617]
[1770432669944,11.83928604,2055.5,2054.6,0.00581149]
[1770432671652,11.83928604,2055.5,2054.6,11.93573617]
[1770432676353,0.00409427,2055.5,2054.8,11.92992468]
[1770432676555,0.00409427,2055.5,2054.8,14.8169005]
[1770432676850,11.83928604,2055.5,2055.0,11.92992468]
[1770432677256,0.00409427,2055.5,2055.0,11.92992468]
[1770432677661,11.83928604,2055.5,2055.0,11.92992468]
[1770432678051,11.83928604,2055.5,2054.8,11.92992468]
[1770432680456,11.83928604,2055.5,2054.7,2.88697582]
[1770432680760,11.83928604,2055.5,2054.7,11.92992468]
[1770432684358,11.83928604,2055.5,2054.9,11.92992468]
[1770432684558,11.83928604,2055.5,2054.8,2.88697582]
[1770432684760,11.83928604,2055.5,2054.7,11.92992468]
[1770432686364,11.83928604,2055.5,2054.7,14.8169005]
[1770432686565,11.83928604,2055.5,2054.9,11.92992468]
[1770432687063,11.83928604,2055.5,2054.7,14.82955973]
[1770432687368,11.83928604,2055.5,2054.8,19.26113909]
[1770432687569,11.83928604,2055.5,2054.8,14.82955973]
[1770432688460,11.83928604,2055.5,2055.1,11.92992468]
[1770432688669,11.83928604,2055.5,2055.0,14.82955973]
[1770432688966,11.83928604,2055.5,2054.8,14.82955973]
[1770432689167,11.83928604,2055.5,2054.9,4.4352412]
[1770432689359,11.83928604,2055.5,2054.9,7.33487625]
[1770432689759,11.83928604,2055.5,2054.6,7.27439698]
[1770432689968,11.83928604,2055.5,2054.6,2.91187627]
[1770432690170,11.83928604,2055.5,2054.6,0.00581149]
[1770432691567,11.83928604,2055.5,2054.6,11.93573617]
[1770432692270,11.83928604,2055.5,2054.7,16.29244539]
[1770432692470,11.83928604,2055.5,2054.8,11.92992468]
[1770432693366,11.83928604,2055.5,2054.7,4.36252071]
[1770432693573,11.83928604,2055.5,2054.6,0.00581149]
[1770432694471,11.83928604,2055.5,2054.6,11.93573617]
[1770432694672,11.83519177,2055.4,2054.3,4.36252071]
[1770432695773,11.83519177,2055.4,2054.3,4.36805003]
[1770432696072,11.95644119,2055.3,2054.3,4.36805003]
[1770432696272,11.95644119,2055.3,2054.3,0.00552932]
[1770432697274,11.95644119,2055.2,2054.3,0.00552932]
[1770432702178,12.19993119,2054.9,2053.5,11.12051937]
[1770432702378,11.57561758,2054.7,2053.5,11.12051937]
[1770432702580,11.33210758,2054.4,2053.5,11.12051937]
[1770432703182,11.32858465,2054.3,2053.1,11.12051937]
[1770432703384,11.32858465,2054.1,2053.1,11.12051937]
[1770432703675,11.32858465,2054.0,2052.7,11.12051937]
[1770432703882,11.32858465,2054.0,2052.7,11.43314139]
[1770432704285,11.33352295,2054.0,2052.7,11.43857097]
[1770432704579,11.33352295,2054.0,2052.7,11.12594895]
[1770432705070,0.0049383,2054.0,2052.7,11.12594895]
[1770432705271,11.60901035,2054.8,2053.3,11.12051937]
[1770432705477,11.60901035,2054.8,2053.6,11.12051937]
[1770432706278,11.61356468,2054.8,2053.6,11.12051937]
[1770432712784,2.88636164,2055.2,2054.2,11.12051937]
[1770432712987,11.68710608,2056.0,2054.7,11.12051937]
[1770432713197,11.68710608,2056.0,2054.9,11.12051937]
[1770432713895,11.69321172,2056.0,2054.9,11.1242567]
[1770432718997,11.69321172,2056.0,2054.9,0.00373733]
[1770432720399,11.93656172,2056.0,2054.9,0.00373733]
[1770432720605,11.51554956,2055.5,2054.3,11.12051937]
[1770432720903,11.51554956,2055.5,2053.8,11.12051937]
[1770432721301,11.51554956,2055.5,2054.1,11.36408937]
[1770432721695,11.51554956,2055.5,2054.1,11.36952224]
[1770432721895,0.0907984,2056.0,2054.4,4.26393144]
[1770432722096,11.4476587,2055.9,2054.7,11.12051937]
[1770432724302,11.4476587,2055.9,2054.9,11.12051937]
[1770432730216,11.46194741,2056.3,2055.3,11.27244509]
[1770432731205,11.46648915,2056.3,2055.3,11.27244509]
[1770432732810,0.00454174,2056.3,2055.3,11.27244509]
[1770432733312,11.46648915,2056.3,2055.3,11.27244509]
[1770432736514,0.00454174,2056.3,2055.3,11.27244509]
[1770432736710,11.46648915,2056.3,2055.3,11.27244509]
[1770432741320,11.46648915,2056.3,2055.4,11.27244509]
[1770432744522,11.46648915,2056.3,2055.5,11.27244509]
[1770432745124,11.46648915,2056.3,2055.2,11.27244509]
[1770432745527,11.46194741,2056.2,2055.2,11.27244509]
[1770432750723,11.46194741,2056.2,2055.0,11.27244509]
[1770432750724,2.88636164,2056.1,2055.0,11.27244509]
[1770432750920,11.43587297,2055.8,2055.0,11.27244509]
[1770432751425,11.43587297,2055.7,2055.0,11.27244509]
[1770432751628,11.43587297,2055.7,2054.7,11.27244509]
[1770432752428,11.43587297,2055.7,2055.0,11.27244509]
[1770432754620,11.43587297,2055.7,2054.8,11.27244509]
[1770432755021,11.46194741,2055.6,2054.8,11.27244509]
[1770432757832,11.46194741,2055.6,2054.6,11.4842182]
[1770432758929,11.46194741,2055.6,2054.5,2.90565608]
[1770432759123,11.46194741,2055.6,2054.5,11.4842182]
[1770432760829,11.46194741,2055.6,2054.4,2.90565608]
[1770432761034,11.46194741,2055.6,2054.3,11.4842182]
[1770432761035,11.39341994,2055.4,2054.3,11.4842182]
[1770432766436,2.88636164,2055.5,2054.4,11.4842182]
[1770432766437,11.42598778,2055.5,2054.4,11.4842182]
[1770432771143,11.42598778,2055.5,2054.5,11.4842182]
[1770432776044,11.42598778,2055.5,2054.5,14.38987428]
[1770432776237,11.42598778,2055.5,2054.6,11.4842182]
[1770432777146,11.45864556,2055.4,2054.6,11.4842182]
[1770432779648,11.45185876,2055.2,2054.4,11.4842182]
[1770432779947,11.45185876,2055.2,2054.5,11.4842182]
[1770432780148,11.43432757,2055.1,2054.5,11.4842182]
[1770432781547,14.32068921,2055.4,2054.5,11.4842182]
[1770432781847,11.43432757,2055.4,2054.7,11.4842182]
[1770432782645,11.43432757,2055.4,2054.8,11.4842182]
[1770432783145,2.88636164,2055.5,2054.8,11.4842182]
[1770432783349,11.47870479,2055.9,2055.2,14.38987428]
[1770432783548,11.47870479,2055.9,2055.3,11.4842182]
[1770432792257,11.47870479,2055.9,2055.1,14.62838247]
[1770432792556,11.47870479,2055.9,2054.8,11.72272639]
[1770432793961,11.47870479,2055.9,2054.6,14.63055241]
[1770432795555,11.47870479,2055.9,2054.9,11.72272639]
[1770432795956,11.47870479,2055.9,2054.9,14.63055241]
[1770432796559,11.47870479,2055.9,2054.9,11.72272639]
[1770432800268,11.47870479,2055.9,2054.7,14.63055241]
[1770432800562,11.47870479,2055.9,2054.7,11.72272639]
[1770432802568,11.04555408,2055.8,2054.7,11.72272639]
[1770432803864,11.04555408,2055.8,2054.6,2.91028504]
[1770432803865,11.28893408,2055.8,2054.6,2.91028504]
[1770432804070,11.04555408,2055.4,2054.4,11.72272639]
[1770432810974,11.04555408,2055.5,2054.5,11.72272639]
[1770432811170,11.04555408,2055.8,2054.5,11.72272639]
[1770432811374,11.04555408,2055.8,2054.5,11.96624639]
[1770432811574,11.04555408,2055.8,2054.6,11.72272639]
[1770432815175,11.04555408,2055.8,2054.6,14.63301143]
[1770432818179,11.54047978,2055.7,2054.6,14.63301143]
[1770432821282,11.54047978,2055.6,2054.6,14.63301143]
[1770432822778,11.54047978,2055.6,2054.8,11.85083118]
[1770432823682,55.02410954,2055.9,2054.8,14.76111622]
[1770432823883,11.54047978,2055.8,2054.8,14.76111622]
[1770432824283,11.54047978,2055.7,2054.8,14.76111622]
[1770432824481,11.54047978,2055.7,2054.8,11.85083118]
[1770432826985,11.54047978,2055.6,2054.8,11.85083118]
[1770432831684,11.54047978,2055.5,2054.8,11.85083118]
[1770432838199,11.54047978,2055.5,2054.8,14.76111622]
[1770432842595,43.48362976,2055.8,2055.0,14.76111622]
[1770432842996,55.02410954,2055.9,2055.1,2.91028504]
[1770432843194,43.48362976,2055.9,2055.2,11.85083118]
[1770432843395,55.02410954,2056.0,2055.2,11.85083118]
[1770432844188,43.48362976,2056.0,2055.2,11.85083118]
[1770432844589,11.54047978,2056.2,2055.4,14.76111622]
[1770432846392,11.54047978,2056.2,2055.4,11.85083118]
[1770432848709,0.00454174,2056.3,2055.4,14.76111622]
[1770432848905,11.18876884,2056.3,2055.4,14.76111622]
[1770432849209,11.18876884,2056.3,2055.4,11.85083118]
[1770432851009,11.18876884,2056.3,2055.4,14.76111622]
[1770432851210,11.18876884,2056.3,2055.4,11.85083118]
[1770432852700,11.18876884,2056.3,2055.4,14.76111622]
[1770432852912,11.18876884,2056.3,2055.4,11.85083118]
[1770432853413,11.18876884,2056.3,2055.6,11.26583807]
[1770432853609,11.18876884,2056.3,2055.6,11.27093635]
[1770432862319,11.18876884,2056.3,2055.6,0.00509828]
[1770432871523,11.1842271,2056.0,2055.2,11.26583807]
[1770432871719,11.1842271,2055.9,2055.2,11.26583807]
[1770432872529,11.1842271,2055.9,2055.2,11.2716106]
[1770432872927,11.1842271,2055.9,2055.2,0.00577253]
[1770432873128,11.1842271,2055.8,2055.2,0.00577253]
[1770432873529,11.1842271,2055.8,2055.2,11.2716106]
[1770432877434,11.1842271,2055.8,2055.2,0.00577253]
[1770432881941,11.1842271,2055.8,2055.2,11.81565152]
[1770432883744,11.1842271,2055.8,2055.2,0.00577253]
[1770432884640,11.1842271,2055.8,2054.9,11.80987899]
[1770432885145,11.32082502,2055.7,2054.9,11.80987899]
[1770432885637,11.32082502,2055.7,2054.9,11.81434758]
[1770432890448,11.32082502,2055.8,2055.1,11.80987899]
[1770432891547,11.32082502,2056.0,2055.1,11.80987899]
[1770432893849,11.32082502,2056.0,2055.2,11.80987899]
[1770432896744,11.32082502,2056.0,2055.2,14.72016403]
[1770432897041,43.4881715,2056.3,2055.2,14.72016403]
[1770432897246,11.32536676,2056.3,2055.4,11.80987899]
[1770432897748,11.32536676,2056.3,2055.4,14.72016403]
[1770432898344,11.32536676,2056.3,2055.4,17.73463675]
[1770432898550,11.32536676,2056.3,2055.3,4.33098889]
[1770432898551,11.32082502,2056.6,2055.8,14.72016403]
[1770432899248,11.32082502,2056.8,2055.9,11.80987899]
[1770432899643,11.32676267,2056.8,2055.9,11.80987899]
[1770432901548,11.32676267,2056.8,2056.0,3.01447272]
[1770432901749,11.32676267,2056.8,2056.1,11.80987899]
[1770432906562,0.00593765,2056.8,2056.1,11.80987899]
[1770432906954,11.64986976,2056.8,2056.1,11.80987899]
[1770432907158,11.64986976,2056.8,2055.9,11.39243854]
[1770432907361,11.64986976,2056.8,2055.8,11.39243854]
[1770432910463,11.03354614,2056.6,2055.5,10.96014254]
[1770432910664,11.03354614,2056.5,2055.5,10.96014254]
[1770432931178,11.03354614,2056.6,2055.7,10.96014254]
[1770432933583,11.03354614,2056.6,2056.0,10.96014254]
[1770432936079,0.00593765,2056.8,2056.2,11.08950324]
[1770432936284,11.39462151,2056.8,2056.2,11.08950324]
[1770432941887,11.39462151,2056.8,2055.9,2.91028504]
[1770432942091,11.38868386,2056.4,2055.6,11.08950324]
[1770432943285,11.38868386,2056.4,2055.5,11.08950324]
[1770432945794,11.38868386,2056.3,2055.5,11.08950324]
[1770432946294,11.38868386,2056.3,2055.4,11.08950324]
[1770432946685,11.38868386,2056.2,2055.4,11.08950324]
[1770432948393,11.38868386,2056.0,2055.1,11.08950324]
[1770432948698,11.38868386,2055.9,2055.1,11.08950324]
[1770432949393,11.38868386,2055.8,2054.9,11.09397183]
[1770432950190,11.38868386,2055.4,2054.7,11.08950324]
[1770432950401,11.38868386,2055.4,2054.5,11.08950324]
[1770432951395,11.38868386,2055.2,2054.5,0.00630671]
[1770432951592,11.38868386,2055.0,2054.2,11.08950324]
[1770432951791,43.48362976,2055.4,2054.0,11.08950324]
[1770432951792,11.38868386,2054.8,2054.0,11.08950324]
[1770432952698,11.39364843,2054.8,2054.0,11.09405313]
[1770432952895,11.39364843,2054.8,2054.0,0.00454989]
[1770432953201,11.38868386,2054.6,2053.8,11.08950324]
[1770432953999,11.38868386,2054.5,2053.8,11.09381511]
[1770432955091,0.00496457,2054.8,2054.5,11.08950324]
[1770432955298,11.38868386,2055.2,2054.5,11.08950324]
[1770432956197,0.00421773,2055.2,2054.8,11.08950324]
[1770432956396,11.38868386,2055.6,2054.8,11.08950324]
[1770432956592,11.38868386,2055.8,2054.8,11.08950324]
[1770432957202,11.38868386,2055.8,2055.0,11.08950324]
[1770432957402,11.39303383,2055.8,2055.0,11.08950324]
[1770432957599,0.00434997,2055.8,2055.0,11.08950324]
[1770432959403,11.38868386,2056.7,2055.1,11.08950324]
[1770432959604,11.38868386,2056.7,2055.4,11.08950324]
[1770432960303,11.39471506,2056.7,2055.4,11.09351716]
[1770432969616,10.94627383,2056.6,2055.4,11.09351716]
[1770432971316,10.94627383,2056.5,2055.4,11.09351716]
[1770432978925,10.95230503,2056.7,2055.4,11.09351716]
[1770432979523,10.95230503,2056.7,2055.6,11.25742455]
[1770432982224,0.0060312,2056.7,2055.6,11.25742455]
[1770432982927,10.95230503,2056.7,2055.6,11.25742455]
[1770432985325,54.43593479,2056.7,2055.7,11.25742455]
[1770432985726,43.48966096,2056.7,2055.7,11.25742455]
[1770432985927,0.0060312,2056.7,2055.8,11.25742455]
[1770432986122,10.95230503,2056.7,2055.9,11.25742455]
[1770432986529,0.0060312,2056.7,2056.0,11.25742455]
[1770432987630,0.0060312,2056.7,2056.1,11.25742455]
[1770432991525,10.95230503,2056.7,2056.1,11.25742455]
[1770432992632,0.0060312,2056.7,2056.1,11.25742455]
[1770432993828,10.94627383,2057.1,2056.1,11.25742455]
[1770432994727,10.95070536,2057.1,2056.1,11.25742455]
[1770432997433,0.00443153,2057.1,2056.1,11.25742455]
[1770432997738,11.09759,2057.5,2056.3,14.70574155]
[1770432998443,11.09759,2057.5,2056.4,11.79545651]
[1770432998743,11.10148308,2057.5,2056.4,11.79545651]
[1770433001139,0.00389308,2057.5,2056.4,11.79545651]
[1770433001846,0.00389308,2057.5,2056.4,14.70574155]
[1770433002143,0.00389308,2057.5,2056.5,11.79545651]
[1770433003645,0.00231394,2057.5,2056.5,12.03874651]
[1770433003847,11.09759,2057.9,2056.6,11.79545651]
[1770433004242,11.09759,2057.9,2056.6,14.70574155]
[1770433004948,11.10138666,2057.9,2056.8,11.79545651]
[1770433005444,0.00379666,2057.9,2056.8,12.03870651]
[1770433005747,11.10138666,2057.9,2056.9,11.79545651]
[1770433005947,11.10138666,2057.9,2056.9,11.79912122]
[1770433006248,0.00379666,2057.9,2056.9,11.79912122]
[1770433011152,11.10138666,2057.9,2056.9,11.79912122]
[1770433016251,0.00379666,2057.9,2056.9,12.04236122]
[1770433016445,0.00379666,2057.9,2057.2,11.79545651]
[1770433018446,0.00379666,2057.9,2057.2,12.03866651]
[1770433018648,11.09759,2058.3,2057.3,11.79545651]
[1770433018952,11.09759,2058.4,2057.3,11.79545651]
[1770433019450,54.82425976,2058.7,2057.3,11.79545651]
[1770433019755,11.09759,2058.6,2057.3,14.70574155]
[1770433020647,11.09759,2058.2,2057.0,2.91028504]
[1770433020952,11.09759,2058.2,2056.9,10.1646169]
[1770433020953,11.09759,2058.0,2056.9,11.79912122]
[1770433021249,11.09759,2058.0,2057.1,11.79545651]
[1770433021452,11.09759,2058.0,2056.9,11.79912122]
[1770433021952,11.09759,2057.7,2056.6,11.79545651]
[1770433022152,11.09759,2057.6,2056.6,11.79545651]
[1770433023043,11.09759,2057.6,2056.6,11.80019103]
[1770433024355,11.09759,2057.5,2056.6,11.80019103]
[1770433026658,11.09759,2057.5,2056.1,11.04884234]
[1770433026659,11.57743769,2057.1,2056.1,11.04884234]
[1770433026857,11.57743769,2056.9,2055.8,11.04884234]
[1770433027755,11.58121087,2056.9,2055.8,11.05333849]
[1770433028254,0.00377318,2056.9,2055.8,11.05333849]
[1770433028454,11.33890481,2056.9,2055.8,11.05333849]
[1770433029953,0.00377318,2056.9,2055.8,11.05333849]
[1770433032255,11.33513163,2057.3,2056.0,11.7890907]
[1770433032454,43.48362976,2057.6,2056.0,11.7890907]
[1770433032758,11.33513163,2057.5,2056.1,11.7890907]
[1770433033462,11.34009822,2057.5,2056.4,11.7890907]
[1770433035957,0.00496659,2057.5,2056.4,11.7890907]
[1770433036155,0.00496659,2057.5,2056.4,14.68993604]
[1770433036764,0.00496659,2057.5,2056.6,11.7890907]
[1770433037858,11.34009822,2057.5,2056.6,11.7890907]
[1770433038964,11.33513163,2058.1,2056.9,0.24323]
[1770433039162,43.48362976,2058.5,2057.1,11.7890907]
[1770433039365,11.33513163,2058.4,2057.1,14.68993604]
[1770433039972,11.34064246,2058.4,2057.2,2.90084534]
[1770433040266,11.34064246,2058.4,2057.3,11.7890907]
[1770433040463,11.34064246,2058.4,2057.3,11.79393344]
[1770433047767,0.00551083,2058.4,2057.5,11.7890907]
[1770433048868,11.33513163,2058.9,2057.6,12.0322507]
[1770433049071,11.33513163,2058.9,2057.7,11.7890907]
[1770433049972,11.34109218,2058.9,2057.7,11.7890907]
[1770433050572,0.00596055,2058.9,2057.7,11.7890907]
[1770433050772,11.34109218,2058.9,2057.7,11.7890907]
[1770433058583,10.96808182,2058.7,2057.5,11.13719174]
[1770433059672,10.97404237,2058.9,2057.6,11.13719174]
[1770433062474,10.96808182,2058.5,2057.4,11.13719174]
[1770433064980,10.96808182,2058.4,2057.4,11.13719174]
[1770433065274,54.45171158,2058.4,2057.4,11.13719174]
[1770433065479,10.96808182,2058.3,2057.4,11.13719174]
[1770433068572,10.96808182,2058.2,2057.4,11.13719174]
[1770433073578,10.96808182,2058.4,2057.4,11.13719174]
[1770433073778,10.96808182,2058.5,2057.5,11.13719174]
[1770433073980,10.96808182,2058.5,2057.6,11.13719174]
[1770433074980,10.96808182,2058.6,2057.6,11.13719174]
[1770433075183,10.96808182,2058.8,2057.7,11.13719174]
[1770433076284,10.97404237,2058.9,2058.1,11.13719174]
[1770433077583,0.00596055,2058.9,2058.1,11.13719174]
[1770433077784,0.00596055,2058.9,2058.2,11.13719174]
[1770433078879,10.97404237,2058.9,2058.2,11.13719174]
[1770433082683,10.97404237,2058.9,2058.1,11.13719174]
[1770433083584,10.97404237,2058.9,2057.9,2.90084534]
[1770433083585,0.00596055,2058.9,2058.3,11.13719174]
[1770433083781,10.97404237,2058.9,2058.3,11.13719174]
[1770433085784,0.00596055,2058.9,2058.3,11.13719174]
[1770433085984,10.78594401,2058.9,2058.3,11.13719174]
[1770433087587,10.78594401,2058.9,2058.1,10.90098002]
[1770433096394,0.00596055,2058.9,2058.2,11.51809671]
[1770433099388,0.00596055,2058.9,2058.2,14.41894205]
[1770433099696,0.00596055,2058.9,2058.3,11.51809671]
[1770433100494,0.00596055,2058.9,2058.3,11.76116671]
[1770433100794,0.00596055,2058.9,2058.5,11.51809671]
[1770433103300,11.36540743,2058.9,2058.6,11.51809671]
[1770433103498,11.36540743,2058.9,2058.4,4.33098889]
[1770433103499,11.36540743,2058.9,2058.4,14.41894205]
[1770433103700,11.36540743,2058.9,2058.4,11.51809671]
[1770433105699,0.00596055,2058.9,2058.4,14.41894205]
[1770433105900,0.00596055,2058.9,2058.5,11.51809671]
[1770433107102,11.35944688,2059.2,2058.7,11.51809671]
[1770433107297,11.35944688,2059.2,2058.6,11.51809671]
[1770433108201,11.3634297,2059.2,2058.6,11.51809671]
[1770433111597,11.3634297,2059.2,2058.5,14.41894205]
[1770433111997,11.3634297,2059.2,2058.3,14.41894205]
[1770433112399,11.3634297,2059.2,2058.3,11.51809671]
[1770433112600,11.3634297,2059.2,2058.2,2.90084534]
[1770433112799,11.35944688,2059.1,2058.2,2.90084534]
[1770433113000,5.7630102,2059.2,2057.8,3.14398534]
[1770433113001,11.35944688,2058.7,2057.8,3.14398534]
[1770433113206,11.35944688,2058.7,2057.9,11.51809671]
[1770433129010,11.60248688,2058.7,2057.6,14.04494523]
[1770433129219,11.60248688,2058.7,2057.6,11.14409989]
[1770433130006,11.35944688,2058.7,2057.7,11.14409989]
[1770433136623,11.35944688,2058.7,2057.8,11.14409989]
[1770433139127,11.35944688,2058.7,2057.8,14.04494523]
[1770433139328,11.35944688,2058.7,2057.9,11.14409989]
[1770433141423,11.35944688,2058.7,2058.0,11.14409989]
[1770433142333,10.88321675,2058.6,2057.9,2.90084534]
[1770433142533,10.88321675,2058.5,2057.8,14.04494523]
[1770433143529,10.88321675,2058.5,2057.8,2.90084534]
[1770433143734,10.88321675,2058.3,2057.4,16.94579058]
[1770433143929,10.88321675,2058.2,2057.5,4.44544951]
[1770433144129,10.88321675,2058.1,2057.4,11.14409989]
[1770433150841,43.52959185,2058.2,2057.4,11.14409989]
[1770433151046,54.61519663,2058.4,2057.4,11.14409989]
[1770433151342,11.08560478,2058.3,2057.4,11.14409989]
[1770433158249,54.61519663,2058.3,2057.4,11.14409989]
[1770433158541,11.08560478,2058.3,2057.4,11.14409989]
[1770433160448,11.08560478,2058.1,2057.4,11.14409989]
[1770433160947,11.08560478,2058.1,2057.3,0.00484274]
[1770433160948,11.08560478,2057.9,2057.3,0.00484274]
[1770433161344,11.08560478,2057.9,2057.3,11.11100662]
[1770433163337,43.52959185,2058.0,2057.3,11.11100662]
[1770433163541,11.08560478,2058.3,2057.5,11.10616388]
[1770433170047,11.08560478,2058.3,2057.3,0.00484274]
[1770433170247,11.08560478,2058.2,2057.3,11.11100662]
[1770433170647,11.08560478,2058.2,2057.3,0.00484274]
[1770433170852,11.08560478,2058.1,2057.3,0.00484274]
[1770433171757,11.08560478,2058.1,2057.3,11.11100662]
[1770433173748,11.08560478,2058.1,2057.3,0.00484274]
[1770433174348,54.61519663,2058.1,2057.3,0.00484274]
[1770433174549,11.08560478,2058.0,2057.3,0.00484274]
[1770433177760,11.08560478,2058.0,2057.3,11.00793325]
[1770433178063,11.2448846,2058.1,2057.4,11.00309051]
[1770433179661,11.2448846,2058.1,2057.3,3.01384322]
[1770433179662,11.2448846,2058.0,2057.3,0.00484274]
[1770433180558,57.78347693,2058.0,2057.3,0.00484274]
[1770433180764,11.2448846,2057.8,2056.9,11.00309051]
[1770433181963,11.2448846,2057.8,2056.9,11.00815825]
[1770433182962,11.2448846,2057.7,2056.9,11.00815825]
[1770433183166,11.24890569,2057.7,2056.9,11.00815825]
[1770433184867,11.2448846,2057.6,2056.9,11.00815825]
[1770433187664,11.24890569,2057.7,2056.9,11.00815825]